bitfinex/quotes_ETHUSD_20241216
["timestamp","ask_amount","ask_price","bid_price","bid_amount"]
[1734321164271,0.7537,3930.3,3929.0,3.55]
[1734321164431,0.7537,3930.3,3929.1,0.692484]
[1734321164963,0.7537,3930.3,3929.6,2.54478]
[1734321165265,0.7537,3930.3,3929.1,0.692484]
[1734321165430,0.7537,3930.3,3929.3,2.54494]
[1734321165627,0.7537,3930.3,3929.8,2.54464]
[1734321166160,0.7537,3930.3,3929.5,0.55]
[1734321166344,5.54332,3931.9,3929.7,0.55]
[1734321166345,0.7734,3931.1,3929.7,0.55]
[1734321166666,0.7734,3931.1,3930.2,2.54439]
[1734321166939,0.7734,3931.1,3930.5,2.54419]
[1734321167123,0.7734,3931.1,3930.9,2.54389]
[1734321167394,0.7734,3931.4,3930.9,2.54389]
[1734321168503,0.7734,3931.4,3930.3,0.254439]
[1734321168718,0.8172,3930.9,3929.4,0.79588306]
[1734321168996,0.8172,3930.9,3929.6,2.54476]
[1734321169199,3.36116,3930.9,3929.6,2.54476]
[1734321169750,0.7754,3930.8,3929.6,2.54476]
[1734321169954,0.7927,3930.6,3929.3,0.7963]
[1734321170151,0.7927,3930.6,3930.1,2.54444]
[1734321170402,0.7927,3930.6,3930.2,2.54434]
[1734321170581,0.7927,3930.6,3930.3,0.254434]
[1734321170802,0.7927,3930.6,3930.2,2.54434]
[1734321170803,0.7927,3930.6,3930.0,2.54451]
[1734321171192,0.7927,3930.6,3930.1,2.54445]
[1734321171591,0.7927,3930.6,3929.3,1.15193696]
[1734321171774,0.7927,3930.6,3930.3,2.54428]
[1734321172129,3.45572,3930.3,3929.7,2.54471]
[1734321172278,3.45572,3930.3,3929.8,0.254471]
[1734321172471,3.45572,3930.3,3930.2,2.54439]
[1734321173922,3.45572,3930.3,3929.9,2.54452]
[1734321174230,3.45572,3930.3,3929.7,2.5447]
[1734321174481,3.45572,3930.3,3929.8,2.54463]
[1734321176306,3.45572,3930.3,3929.4,0.55]
[1734321176642,3.45572,3930.3,3929.9,2.54459]
[1734321176951,3.45572,3930.3,3930.2,3.09439]
[1734321177134,3.45572,3930.3,3930.2,6.09439]
[1734321178257,0.7629,3931.5,3930.3,3.0]
[1734321178475,0.7629,3931.5,3930.7,0.7864]
[1734321178676,1.5571386,3933.4,3930.7,0.7864]
[1734321178677,0.8204,3932.0,3930.8,2.65637627]
[1734321178961,0.8204,3932.0,3931.8,2.54336]
[1734321179170,0.8204,3932.0,3931.5,2.54351]
[1734321179513,0.8204,3932.0,3931.6,2.54347]
[1734321179718,0.8204,3932.0,3931.1,2.54381]
[1734321179719,0.8204,3932.0,3931.3,2.54362]
[1734321179914,0.8204,3932.0,3931.3,0.508743]
[1734321180217,0.8204,3932.0,3931.6,2.54346]
[1734321180817,0.8204,3932.0,3931.3,3.052363]
[1734321181023,0.8204,3932.0,3931.3,2.54362]
[1734321181218,0.8204,3932.0,3931.5,2.54351]
[1734321181463,0.8204,3932.0,3930.8,0.55]
[1734321181664,0.8209,3932.4,3931.2,3.55]
[1734321181817,0.8209,3933.1,3931.8,0.55]
[1734321182043,0.8209,3933.1,3932.5,2.5429]
[1734321182446,0.8209,3933.1,3932.3,2.54303]
[1734321182707,0.8209,3933.1,3932.0,1.3467]
[1734321182844,0.8209,3933.1,3932.4,2.54296]
[1734321183179,0.8209,3933.1,3932.2,2.54307]
[1734321183348,0.8209,3933.1,3932.2,2.54308]
[1734321183760,0.8209,3933.1,3932.4,2.54294]
[1734321183966,0.8209,3933.1,3932.0,1.3467]
[1734321184167,0.8209,3933.1,3932.0,1.7357]
[1734321184394,2.52,3934.2,3932.6,2.54282]
[1734321184395,1.01882026,3933.5,3932.6,2.54282]
[1734321184549,0.8112,3933.5,3932.7,2.54277]
[1734321185253,0.8112,3933.5,3932.8,2.54269]
[1734321185752,0.8112,3933.5,3932.2,0.55]
[1734321185952,5.54171,3934.4,3933.2,2.54245]
[1734321185953,0.8132,3934.4,3933.2,2.54245]
[1734321186151,0.8132,3934.4,3932.4,0.55]
[1734321186601,0.8132,3934.4,3932.6,1.3041]
[1734321186786,0.8132,3934.4,3933.4,2.54231]
[1734321187158,0.8132,3934.4,3932.6,4.3041]
[1734321187159,0.8132,3934.4,3933.5,0.8275]
[1734321187494,0.8132,3934.4,3933.7,2.54208]
[1734321188115,0.7642,3934.9,3934.1,2.54186]
[1734321188905,0.7642,3934.9,3933.7,0.336958]
[1734321188906,0.7642,3934.9,3933.9,2.54197]
[1734321189107,0.7642,3934.9,3934.0,2.54191]
[1734321189405,2.67999499,3936.1,3934.0,2.54191]
[1734321189406,0.7642,3935.2,3934.5,2.54161]
[1734321189570,0.7642,3935.2,3934.2,2.54176]
[1734321190073,0.7642,3935.2,3934.3,2.54174]
[1734321190276,0.7642,3935.2,3934.1,3.55]
[1734321191159,0.7642,3935.2,3934.3,3.55]
[1734321191501,2.54053,3936.2,3934.8,2.5414]
[1734321192317,0.7804,3936.1,3934.5,0.55]
[1734321192462,2.5408,3935.8,3934.5,0.55]
[1734321192797,2.5408,3935.8,3934.3,0.55]
[1734321192798,0.33212,3935.7,3934.3,0.55]
[1734321193104,0.33212,3935.7,3934.2,0.49820689]
[1734321193105,2.54097,3935.5,3934.2,3.0]
[1734321193500,0.7804,3935.6,3934.1,0.55]
[1734321193666,0.7804,3935.6,3934.5,2.54158]
[1734321195073,0.7804,3935.6,3934.0,1.0498868]
[1734321195294,0.7804,3935.3,3934.1,3.0]
[1734321195562,0.7804,3935.3,3934.2,3.0]
[1734321196026,0.7804,3935.3,3934.4,2.54166]
[1734321196507,0.7804,3935.3,3934.6,2.54154]
[1734321197216,0.7804,3935.3,3934.2,2.54175]
[1734321197375,0.7804,3935.3,3934.7,2.54146]
[1734321197576,0.7804,3935.3,3934.8,2.54141]
[1734321197777,0.7804,3935.3,3934.9,2.54135]
[1734321198075,0.7804,3935.3,3935.0,2.54127]
[1734321198511,0.8193,3936.1,3935.1,3.34162]
[1734321199619,0.8193,3936.1,3934.8,3.09142]
[1734321199620,3.3599,3936.1,3934.8,3.09142]
[1734321199918,0.8193,3936.1,3934.9,2.54134]
[1734321200812,0.8193,3936.1,3934.7,0.8146]
[1734321200813,0.8193,3936.1,3935.1,2.54121]
[1734321201020,0.8193,3936.1,3934.7,0.8146]
[1734321201337,0.8193,3936.1,3935.4,2.54101]
[1734321201893,0.8193,3936.1,3935.6,2.5409]
[1734321203492,0.8193,3936.1,3935.0,5.54129]
[1734321203794,0.8193,3936.1,3935.4,2.54103]
[1734321204088,0.8193,3936.1,3935.2,3.0]
[1734321204639,0.8193,3936.1,3934.4,2.54165]
[1734321204640,3.35926,3936.0,3934.7,0.55]
[1734321204932,3.35926,3936.0,3934.8,2.54141]
[1734321205137,0.335926,3935.9,3934.8,2.54141]
[1734321205443,0.8186,3936.0,3934.8,2.54141]
[1734321205740,3.35927,3936.0,3934.8,2.54141]
[1734321207031,3.35927,3936.0,3934.4,1.32432433]
[1734321207032,0.8186,3936.0,3934.9,2.54134]
[1734321207524,2.54053,3936.2,3934.9,2.54134]
[1734321207834,0.8298,3937.0,3935.3,3.55]
[1734321208140,0.8298,3937.0,3935.4,0.81911308]
[1734321208292,0.8298,3937.0,3935.9,2.54068]
[1734321208496,0.8298,3937.0,3935.5,0.55]
[1734321208760,0.8298,3937.0,3936.0,2.54063]
[1734321209240,0.8298,3937.0,3935.8,2.54077]
[1734321209537,2.89332727,3936.9,3935.6,2.5409]
[1734321209737,0.8116,3936.8,3935.6,2.5409]
[1734321210040,0.8116,3936.8,3935.4,3.36012308]
[1734321210041,2.54022,3936.7,3935.4,3.36012308]
[1734321210241,2.54022,3936.7,3934.9,3.04647059]
[1734321210242,0.8116,3936.5,3934.9,3.04647059]
[1734321210405,3.35206,3936.3,3935.1,3.0]
[1734321210606,3.35206,3936.3,3935.1,5.54123]
[1734321210820,3.35206,3936.3,3934.9,0.04647059]
[1734321211024,3.35206,3936.3,3935.0,3.0]
[1734321211229,0.335206,3936.2,3935.0,3.0]
[1734321211723,0.335206,3936.2,3935.1,3.0]
[1734321212183,0.335206,3936.2,3935.1,2.54122]
[1734321212401,0.335206,3936.2,3934.9,0.04647059]
[1734321212681,0.8116,3936.3,3934.9,0.04647059]
[1734321213183,0.8116,3936.3,3934.9,2.58778059]
[1734321213392,3.35209,3936.3,3934.9,2.58778059]
[1734321213608,3.32353,3936.2,3934.9,2.58778059]
[1734321214540,3.32353,3936.2,3934.9,0.04647059]
[1734321214874,0.332353,3936.1,3935.0,2.54128]
[1734321215391,0.332353,3936.1,3935.1,2.54119]
[1734321215555,0.783,3936.2,3935.1,2.54119]
[1734321216661,0.783,3936.2,3934.9,0.04647059]
[1734321216867,0.783,3936.2,3935.0,0.55]
[1734321217103,0.783,3936.2,3935.5,2.54095]
[1734321217392,0.783,3936.2,3935.6,2.54088]
[1734321217546,0.783,3936.2,3935.4,2.54103]
[1734321217989,0.783,3936.2,3935.4,2.54099]
[1734321218197,0.783,3936.2,3935.5,2.54095]
[1734321218413,2.52,3937.0,3935.5,2.54095]
[1734321218414,0.7739,3936.9,3935.5,0.55]
[1734321218565,0.7739,3936.9,3936.0,2.5406]
[1734321219798,0.7739,3936.9,3935.6,2.67232]
[1734321219799,0.7739,3936.9,3935.8,2.54077]
[1734321219974,0.7739,3936.9,3935.6,0.13142]
[1734321219975,0.7739,3936.9,3935.7,0.55]
[1734321220615,0.7739,3936.9,3935.8,0.322233]
[1734321221307,0.7739,3936.9,3935.8,2.863003]
[1734321221509,0.7739,3936.9,3935.8,0.322233]
[1734321221677,0.7739,3936.9,3936.0,2.54064]
[1734321222091,0.7739,3936.9,3936.1,2.54056]
[1734321222595,0.7739,3936.9,3935.9,0.4003653]
[1734321223202,0.7739,3936.9,3934.9,0.83027059]
[1734321223424,0.1625327,3937.1,3934.9,0.83027059]
[1734321223425,3.33117,3936.0,3934.9,0.04647059]
[1734321223654,1.123617,3935.9,3934.9,0.04647059]
[1734321223930,0.7905,3935.7,3934.4,0.31307016]
[1734321224104,0.7905,3935.7,3934.7,2.54144]
[1734321224307,0.7905,3935.7,3934.8,2.5414]
[1734321224507,0.7905,3935.7,3934.9,0.25414]
[1734321225719,0.7905,3935.7,3934.8,0.55]
[1734321226076,0.7905,3935.7,3934.8,2.54141]
[1734321227028,0.7905,3935.7,3934.6,0.55]
[1734321227195,0.7905,3935.7,3934.8,0.55]
[1734321227376,0.7905,3935.7,3934.5,0.55]
[1734321227377,3.33136,3935.7,3934.5,3.55]
[1734321227582,2.54097,3935.5,3934.6,0.64047002]
[1734321227779,2.54097,3935.5,3934.3,0.55]
[1734321228123,3.33135,3935.7,3934.5,0.55]
[1734321228333,3.33135,3935.7,3934.5,3.55]
[1734321228481,0.7905,3935.7,3934.2,0.7838]
[1734321228824,2.54104,3935.4,3934.3,0.55]
[1734321229037,3.33139,3935.7,3934.4,0.687561]
[1734321229212,2.54092,3935.6,3934.4,0.687561]
[1734321229992,2.54097,3935.5,3934.4,0.687561]
[1734321230195,0.51483468,3936.5,3934.2,0.7838]
[1734321230196,0.7895,3935.2,3934.2,3.7838]
[1734321230425,0.7895,3935.2,3934.2,0.7838]
[1734321230629,3.33068,3935.2,3934.2,0.7838]
[1734321230930,0.7895,3935.2,3934.2,0.7838]
[1734321231837,0.7895,3935.2,3934.2,1.13943696]
[1734321231986,0.7895,3935.2,3934.6,2.54154]
[1734321232191,0.7611,3936.2,3934.5,3.55]
[1734321232440,3.30162,3936.2,3934.8,2.54138]
[1734321232640,3.68326547,3936.2,3934.9,0.254138]
[1734321232805,3.68326547,3936.2,3934.9,2.795488]
[1734321233006,1.14274547,3936.2,3935.0,2.54126]
[1734321233205,1.14274547,3936.2,3934.9,0.254138]
[1734321233735,0.7816,3936.1,3934.9,0.254138]
[1734321233894,0.7816,3935.8,3934.5,0.55]
[1734321234642,0.7816,3935.8,3934.4,4.61064293]
[1734321234859,0.7816,3935.8,3934.7,2.54148]
[1734321235172,0.7816,3935.8,3934.8,0.55]
[1734321236184,0.7816,3935.8,3934.8,2.54141]
[1734321236363,0.7816,3935.8,3934.9,0.41520529]
[1734321236661,0.7816,3935.8,3934.6,3.09153]
[1734321237878,0.7816,3935.8,3934.7,1.06064293]
[1734321238279,0.7816,3935.8,3934.8,2.54139]
[1734321241767,0.7816,3935.8,3935.0,0.55]
[1734321242086,4.61625256,3937.0,3935.0,0.55]
[1734321242087,0.779,3936.2,3935.5,2.54095]
[1734321243575,0.779,3936.2,3935.4,1.06064293]
[1734321243775,0.779,3936.2,3935.5,2.54092]
[1734321244176,0.779,3936.2,3935.7,2.54079]
[1734321244379,0.7539,3937.0,3935.5,0.55]
[1734321244693,0.7539,3937.0,3936.4,2.54037]
[1734321244863,0.7539,3937.0,3936.5,0.254037]
[1734321246063,0.7539,3937.0,3936.1,0.55]
[1734321246701,0.7539,3937.0,3936.3,2.54044]
[1734321248201,0.7539,3937.0,3936.1,3.55]
[1734321248751,0.7539,3937.0,3936.3,2.54043]
[1734321249493,0.7539,3937.0,3936.0,1.06273681]
[1734321249494,0.7539,3937.0,3936.5,2.54031]
[1734321249649,0.7539,3937.0,3936.6,0.254031]
[1734321250459,0.1625327,3937.1,3936.4,3.09039]
[1734321250702,0.1625327,3937.1,3936.8,2.5401]
[1734321251956,0.1625327,3937.1,3936.4,0.55]
[1734321252266,0.1625327,3937.1,3936.7,2.54019]
[1734321252459,0.1625327,3937.1,3936.8,0.254019]
[1734321252682,0.1625327,3937.1,3936.8,2.54012]
[1734321254382,0.1625327,3937.1,3936.4,0.55]
[1734321254681,0.1625327,3937.1,3936.3,3.31675]
[1734321254682,0.1625327,3937.1,3936.6,2.54025]
[1734321256322,0.1625327,3937.1,3936.3,2.54041]
[1734321256513,0.1625327,3937.1,3936.4,0.254041]
[1734321257821,0.7606,3937.0,3936.3,0.55]
[1734321258321,0.7606,3937.0,3936.0,3.09065]
[1734321258524,0.7606,3937.0,3936.2,3.55]
[1734321258837,0.7606,3937.0,3936.3,2.54044]
[1734321259126,0.7606,3937.0,3936.2,2.54052]
[1734321259281,0.7606,3937.0,3936.3,0.59442102]
[1734321260082,0.7606,3937.0,3936.4,2.54033]
[1734321260287,0.1625327,3937.1,3936.3,0.59442102]
[1734321260484,0.1625327,3937.1,3936.5,5.54032]
[1734321260935,0.1625327,3937.1,3936.5,2.54032]
[1734321261159,0.1625327,3937.1,3936.7,2.54019]
[1734321261703,0.1625327,3937.1,3936.8,3.0]
[1734321262958,0.1625327,3937.1,3937.0,5.54]
[1734321263505,0.1625327,3937.1,3936.7,6.09016]
[1734321263805,0.1625327,3937.1,3936.6,0.3134741]
[1734321264001,0.1625327,3937.1,3936.3,3.92625102]
[1734321264262,0.1625327,3937.1,3936.8,2.54013]
[1734321264458,0.1625327,3937.1,3936.9,3.0]
[1734321264625,0.1625327,3937.1,3937.0,0.554013]
[1734321265925,0.1625327,3937.1,3936.9,2.54006]
[1734321267114,0.1625327,3937.1,3936.8,3.0]
[1734321268264,0.1625327,3937.1,3937.0,5.54]
[1734321268984,0.1625327,3937.1,3936.4,3.09034]
[1734321268985,0.1625327,3937.1,3936.6,0.55]
[1734321269282,0.1625327,3937.1,3936.9,3.0]
[1734321269479,0.1625327,3937.1,3936.9,5.54006]
[1734321272431,0.1625327,3937.1,3936.8,0.55]
[1734321272556,0.1625327,3937.1,3937.0,3.0]
[1734321273338,0.1625327,3937.1,3937.0,5.54]
[1734321273544,0.1625327,3937.1,3937.0,6.094]
[1734321274059,0.1625327,3937.1,3937.0,6.644]
[1734321274390,0.1625327,3937.1,3937.0,7.4047]
[1734321274559,0.1625327,3937.1,3937.0,7.71777016]
[1734321275482,0.1625327,3937.1,3937.0,7.4047]
[1734321276511,0.1625327,3937.1,3937.0,6.644]
[1734321278204,0.1625327,3937.1,3937.0,1.104]
[1734321278410,0.1625327,3937.1,3936.4,0.35563696]
[1734321278638,0.7528,3937.0,3935.8,3.34938681]
[1734321278921,0.7528,3937.0,3935.8,2.28665]
[1734321279992,0.7528,3937.0,3935.2,1.526]
[1734321279993,0.7523,3936.6,3935.2,4.16142681]
[1734321280193,0.7523,3936.6,3935.4,2.28691]
[1734321280525,3.29257,3936.6,3935.4,2.28691]
[1734321280894,2.54033,3936.5,3935.3,0.85593733]
[1734321281221,2.54047,3936.3,3935.1,0.28963422]
[1734321281426,0.7523,3936.2,3935.1,0.28963422]
[1734321281623,0.7523,3936.2,3935.1,0.16106429]
[1734321281799,0.7523,3936.2,3935.2,0.37743456]
[1734321282120,2.1002245,3936.7,3934.8,1.41837377]
[1734321282121,2.5406,3936.1,3934.8,0.35563696]
[1734321282319,0.7976,3936.0,3934.8,2.64290696]
[1734321282521,0.7976,3936.0,3934.9,0.35563696]
[1734321283521,3.33825,3936.0,3934.9,0.35563696]
[1734321284288,2.54078,3935.8,3934.9,0.35563696]
[1734321284489,3.29656,3935.7,3934.6,0.55]
[1734321284826,3.29656,3935.7,3934.8,0.55]
[1734321284827,0.7557,3935.7,3934.8,0.55]
[1734321286135,0.7557,3935.7,3934.8,3.90563696]
[1734321286317,0.7557,3935.7,3935.0,1.3193]
[1734321286520,0.7557,3935.7,3935.2,0.55]
[1734321288406,0.7557,3935.7,3935.0,0.55]
[1734321289022,0.7557,3935.7,3934.9,3.0]
[1734321289231,0.7557,3935.7,3935.0,3.55]
[1734321289835,0.7557,3935.7,3934.7,1.06273681]
[1734321290045,0.7557,3935.7,3934.4,0.61400354]
[1734321290046,0.7557,3935.7,3934.4,2.46144035]
[1734321290249,2.54092,3935.6,3934.4,1.49025456]
[1734321290542,1.04129245,3935.7,3934.5,3.0]
[1734321290749,0.772,3935.6,3934.5,3.0]
[1734321291043,2.54098,3935.5,3934.4,0.70555456]
[1734321291238,2.54098,3935.5,3933.9,2.21463305]
[1734321291239,0.8321,3935.4,3934.0,1.06273681]
[1734321291547,0.8321,3934.9,3933.8,0.49775501]
[1734321291710,0.8321,3934.9,3933.8,0.48678818]
[1734321292597,0.8321,3934.9,3933.9,2.54199]
[1734321292791,0.8321,3934.9,3934.0,3.0]
[1734321292992,0.8321,3934.9,3933.6,0.7653]
[1734321293220,0.8321,3934.9,3933.8,2.54204]
[1734321293404,0.8321,3934.9,3933.9,3.0]
[1734321293823,0.8321,3934.9,3933.9,0.685734]
[1734321294137,0.8321,3934.9,3934.5,2.5416]
[1734321294545,0.8321,3934.9,3934.6,5.54154]
[1734321294700,0.8047,3935.2,3934.6,5.54154]
[1734321294907,0.8047,3935.2,3934.6,3.0]
[1734321297942,0.8047,3935.2,3934.7,3.0]
[1734321300441,0.8047,3935.2,3934.4,3.0]
[1734321300755,0.8047,3935.2,3934.3,0.55]
[1734321300901,0.8047,3935.2,3933.9,1.455134]
[1734321300902,0.8047,3935.2,3933.9,0.685734]
[1734321301102,0.8047,3935.2,3933.6,0.7694]
[1734321301306,0.7524,3935.1,3933.6,0.7694]
[1734321301904,0.8155,3933.9,3932.8,1.85883813]
[1734321302098,0.8155,3933.9,3932.0,0.7541]
[1734321302457,0.8155,3933.9,3932.3,0.64709629]
[1734321302614,0.8155,3933.8,3932.6,2.54283]
[1734321302942,0.8155,3933.8,3932.3,0.13002876]
[1734321303111,0.8155,3933.6,3932.4,2.54295]
[1734321303299,0.8155,3933.6,3932.5,0.254295]
[1734321304101,0.8155,3933.6,3932.1,0.22134561]
[1734321304102,2.54234,3933.4,3932.2,2.54308]
[1734321304301,0.7677,3933.3,3932.2,2.54308]
[1734321304698,0.7677,3933.3,3932.3,2.54301]
[1734321305440,0.7677,3933.3,3932.4,0.55]
[1734321305599,0.7677,3933.3,3932.1,0.22134561]
[1734321305600,0.75851292,3933.3,3932.2,0.55]
[1734321305797,0.75851292,3933.3,3932.7,2.54276]
[1734321306281,0.75851292,3933.3,3932.5,0.55]
[1734321306413,2.54154,3934.7,3933.1,3.0]
[1734321306759,2.1002245,3934.8,3933.2,0.55]
[1734321307260,2.1002245,3934.8,3933.6,2.54217]
[1734321307472,2.81638295,3934.8,3933.6,2.54217]
[1734321308755,0.7677,3934.7,3933.6,2.54217]
[1734321309720,0.7677,3934.7,3933.8,0.55]
[1734321310094,0.7677,3935.0,3934.3,3.0]
[1734321310298,0.7677,3935.0,3934.4,0.55]
[1734321310514,0.7677,3935.0,3934.2,2.54175]
[1734321311000,0.7677,3935.0,3933.7,2.54209]
[1734321311001,2.54137,3934.9,3933.6,3.09218]
[1734321311147,0.7677,3934.8,3933.7,2.54213]
[1734321311347,0.7677,3934.8,3933.8,3.0]
[1734321311845,0.7677,3934.8,3933.8,5.54205]
[1734321312180,0.7677,3934.8,3933.6,0.55]
[1734321312379,0.7677,3934.8,3933.8,2.54205]
[1734321312607,0.7677,3934.8,3933.9,3.0]
[1734321313321,0.7677,3934.8,3933.9,3.554205]
[1734321313619,0.7677,3934.8,3933.9,0.554205]
[1734321313850,0.7677,3934.8,3933.9,3.096205]
[1734321313986,0.7677,3934.8,3933.9,2.542]
[1734321314326,0.7677,3934.8,3934.0,2.54193]
[1734321314932,0.7677,3934.8,3933.4,3.09226]
[1734321314933,0.7677,3934.8,3933.7,3.09208]
[1734321315279,0.7677,3934.8,3933.8,3.0]
[1734321315922,0.7677,3934.8,3933.7,0.55]
[1734321316126,0.7677,3934.8,3933.9,2.54198]
[1734321316309,0.7677,3934.8,3934.0,3.309198]
[1734321317083,0.7677,3934.8,3933.6,2.54216]
[1734321317285,0.7677,3934.8,3932.8,3.33511]
[1734321317286,0.7533,3934.6,3932.8,3.33511]
[1734321317536,2.1002245,3934.8,3933.5,3.0]
[1734321317537,0.7533,3934.5,3933.5,3.0]
[1734321318640,0.7533,3934.5,3933.0,3.0]
[1734321318819,0.7533,3934.5,3933.5,3.0]
[1734321319143,0.7533,3934.5,3933.7,3.0]
[1734321319689,0.7533,3934.5,3933.7,2.54209]
[1734321320409,0.7533,3934.5,3933.8,2.54206]
[1734321320607,0.7533,3934.5,3933.8,2.54201]
[1734321320843,0.7533,3934.5,3933.9,2.796191]
[1734321321152,0.7533,3934.5,3934.1,2.54187]
[1734321321632,0.7533,3934.5,3933.9,0.254201]
[1734321321990,0.7533,3934.5,3933.7,0.55]
[1734321322185,0.7533,3934.5,3933.7,3.55]
[1734321322452,0.7533,3934.5,3933.1,0.633505]
[1734321322746,0.7505,3934.4,3933.3,2.54238]
[1734321322889,0.7505,3934.4,3933.8,2.54206]
[1734321323339,0.7505,3934.4,3933.5,2.54221]
[1734321323698,0.7505,3934.4,3933.6,3.0]
[1734321325298,0.7505,3934.4,3933.4,0.254238]
[1734321325509,0.7505,3934.4,3933.6,3.0]
[1734321325810,0.7505,3934.4,3933.7,0.3254238]
[1734321325993,0.7505,3934.4,3933.4,0.254238]
[1734321326195,0.7505,3934.4,3933.4,0.55]
[1734321326397,0.7505,3934.4,3933.5,3.0]
[1734321326698,0.7505,3934.4,3933.5,0.8121]
[1734321326922,0.7505,3934.4,3933.9,3.0]
[1734321328825,0.7505,3934.4,3933.9,5.54199]
[1734321328998,5.14979986,3935.6,3934.0,0.55]
[1734321328999,0.7929,3934.7,3934.0,0.55]
[1734321329199,5.66739431,3936.1,3934.0,0.55]
[1734321329200,0.7929,3935.9,3934.6,2.54154]
[1734321329602,0.7929,3935.9,3934.7,2.54148]
[1734321330237,0.7939,3935.7,3934.5,3.0]
[1734321330449,0.7939,3935.6,3934.5,3.0]
[1734321330600,0.74149515,3935.9,3934.2,3.0]
[1734321330601,2.1002245,3935.7,3934.2,3.0]
[1734321330800,2.1002245,3935.7,3933.9,0.554199]
[1734321330801,0.7939,3935.4,3933.9,0.554199]
[1734321331048,0.7939,3935.4,3934.3,2.54173]
[1734321331542,0.7939,3935.4,3934.5,2.54161]
[1734321331699,0.7939,3935.4,3934.4,0.55]
[1734321331901,0.7939,3935.4,3934.7,2.54146]
[1734321332798,0.7939,3935.4,3935.0,2.54128]
[1734321334510,0.7939,3935.4,3935.0,2.54124]
[1734321334827,0.7939,3935.4,3935.1,0.254124]
[1734321336040,0.7939,3935.4,3934.8,2.54139]
[1734321338731,0.7939,3935.4,3934.9,2.54135]
[1734321339797,0.7939,3935.4,3934.3,1.61690981]
[1734321339999,0.7939,3935.4,3934.5,3.0]
[1734321340228,0.7939,3935.4,3934.5,3.6095803]
[1734321340750,0.7939,3935.4,3934.5,0.6095803]
[1734321340905,0.7939,3935.4,3934.2,2.54175]
[1734321341105,0.7939,3935.4,3934.3,3.0]
[1734321341300,0.7939,3935.4,3934.6,3.0]
[1734321341820,0.7939,3935.4,3934.6,2.54149]
[1734321342249,0.7939,3935.4,3934.7,3.0]
[1734321342446,0.7939,3935.4,3934.8,0.554149]
[1734321343755,0.7939,3935.4,3934.7,2.54144]
[1734321345305,0.7939,3935.4,3934.8,2.54142]
[1734321347336,0.7939,3935.4,3934.6,0.8199]
[1734321347527,0.7939,3935.4,3934.8,2.54136]
[1734321348271,0.7939,3935.4,3934.6,0.8199]
[1734321348272,0.7939,3935.4,3935.1,2.54121]
[1734321348578,0.7939,3935.4,3935.2,0.309121]
[1734321348871,0.7939,3935.4,3934.8,2.54138]
[1734321350780,0.7939,3935.4,3934.5,0.55]
[1734321350985,0.7939,3935.4,3934.3,3.0]
[1734321351280,0.7939,3935.4,3934.4,3.79194652]
[1734321351464,0.7939,3935.4,3934.4,0.79194652]
[1734321352785,2.54069,3936.0,3934.0,1.06273681]
[1734321352786,0.8069,3935.1,3934.0,1.06273681]
[1734321353087,2.54138,3934.9,3933.7,2.54213]
[1734321353382,0.7616,3934.8,3933.7,2.54213]
[1734321353676,0.7616,3934.8,3933.8,0.36048668]
[1734321353894,0.7616,3934.8,3933.9,0.8024]
[1734321354176,0.7616,3934.8,3934.1,4.15454681]
[1734321354379,0.7616,3934.8,3934.1,3.09181]
[1734321354684,0.7616,3934.8,3934.2,3.0]
[1734321354833,0.7616,3934.8,3934.3,0.71545468]
[1734321355396,0.7616,3934.8,3933.9,1.06273681]
[1734321355397,3.30302,3934.8,3933.9,3.0]
[1734321355545,3.30302,3934.8,3933.8,0.36048668]
[1734321355895,0.8269,3934.7,3933.8,0.36048668]
[1734321357200,0.8269,3934.7,3933.9,0.55]
[1734321357400,0.8269,3934.7,3934.1,0.55]
[1734321357900,0.8269,3934.7,3934.2,2.5418]
[1734321360893,0.8269,3934.7,3934.3,2.54173]
[1734321361102,2.54089,3935.7,3934.3,0.55]
[1734321361103,0.8311,3935.7,3934.3,0.55]
[1734321361267,0.8311,3935.7,3934.6,2.54155]
[1734321361467,0.8311,3935.7,3934.8,0.7899]
[1734321361672,0.8222,3936.6,3935.7,3.0]
[1734321361920,0.8222,3937.0,3936.4,2.54037]
[1734321362266,0.8222,3937.0,3936.5,2.54031]
[1734321362516,0.8222,3937.0,3936.3,0.55]
[1734321362711,0.1625327,3937.1,3936.9,2.54006]
[1734321362969,0.1625327,3937.1,3936.4,7.11934049]
[1734321363171,0.1625327,3937.1,3936.4,6.05660368]
[1734321363520,0.1625327,3937.1,3936.6,3.0]
[1734321363746,0.1625327,3937.1,3936.4,0.51627368]
[1734321364160,0.1625327,3937.1,3936.7,3.0]
[1734321364529,0.1625327,3937.1,3936.1,4.06273681]
[1734321364732,0.1625327,3937.1,3936.5,3.0]
[1734321364929,0.1625327,3937.1,3936.1,0.55]
[1734321365132,0.1625327,3937.1,3936.5,3.8232]
[1734321365337,0.1625327,3937.1,3936.7,3.0]
[1734321365633,0.1625327,3937.1,3936.6,0.38232]
[1734321365634,0.1625327,3937.1,3936.9,3.0]
[1734321366841,0.1625327,3937.1,3936.6,3.38232]
[1734321367431,0.1625327,3937.1,3936.8,3.0]
[1734321367970,0.1625327,3937.1,3936.9,2.54005]
[1734321368171,0.1625327,3937.1,3937.0,3.254005]
[1734321372691,0.00207004,3937.1,3937.0,6.7014295]
[1734321372982,2.52,3939.1,3937.0,6.7014295]
[1734321372983,0.8257,3938.9,3938.0,3.0]